[Event "Live Chess"]
[Site "Chess.com"]
[Date "2023.05.21"]
[Round "-"]
[White "MJMykh"]
[Black "Ferrarifan27"]
[Result "0-1"]
[WhiteElo "1116"]
[BlackElo "2074"]
[TimeControl "300"]
[EndTime "0:57:53 PDT"]
[Termination "Ferrarifan27 won by checkmate"]

1. e4 {[%clk 0:04:57.7]} 1... e5 {[%clk 0:04:58.6]} 2. Nf3 {[%clk 0:04:56.4]}
2... Nc6 {[%clk 0:04:58]} 3. Nc3 {[%clk 0:04:55.2]} 3... Nf6 {[%clk 0:04:56.6]}
4. Bc4 {[%clk 0:04:53.8]} 4... Bc5 {[%clk 0:04:55]} 5. Ng5 {[%clk 0:04:53.4]}
5... O-O {[%clk 0:04:53.5]} 6. Nxf7 {[%clk 0:04:53]} 6... Rxf7 {[%clk
0:04:52.5]} 7. Bxf7+ {[%clk 0:04:52.1]} 7... Kxf7 {[%clk 0:04:52.4]} 8. O-O
{[%clk 0:04:51.9]} 8... d6 {[%clk 0:04:49.6]} 9. h3 {[%clk 0:04:51.2]} 9... Be6
{[%clk 0:04:45.9]} 10. d3 {[%clk 0:04:50.3]} 10... Kg8 {[%clk 0:04:44.8]} 11.
Bg5 {[%clk 0:04:49.6]} 11... h6 {[%clk 0:04:42.9]} 12. Bxf6 {[%clk 0:04:48.7]}
12... Qxf6 {[%clk 0:04:42.6]} 13. a3 {[%clk 0:04:46.4]} 13... Rf8 {[%clk
0:04:40.5]} 14. Qe2 {[%clk 0:04:42.3]} 14... Qg6 {[%clk 0:04:38.1]} 15. Kh2
{[%clk 0:04:34.9]} 15... Nd4 {[%clk 0:04:36.7]} 16. Qd2 {[%clk 0:04:30.4]} 16...
Nf3+ {[%clk 0:04:27.9]} 17. gxf3 {[%clk 0:04:28.6]} 17... Rxf3 {[%clk
0:04:27.8]} 18. Rg1 {[%clk 0:04:18.5]} 18... Rxh3# {[%clk 0:04:26]} 0-1

[Event "Live Chess"]
[Site "Chess.com"]
[Date "2023.05.21"]
[Round "-"]
[White "ExIsambard"]
[Black "Doge_Dandolo"]
[Result "1-0"]
[WhiteElo "1934"]
[BlackElo "1897"]
[TimeControl "300"]
[EndTime "0:57:57 PDT"]
[Termination "ExIsambard won by checkmate"]

1. d4 {[%clk 0:04:58.5]} 1... d5 {[%clk 0:04:58.6]} 2. Bg5 {[%clk 0:04:57.1]}
2... c5 {[%clk 0:04:55.7]} 3. c3 {[%clk 0:04:56]} 3... Nc6 {[%clk 0:04:51.6]} 4.
e3 {[%clk 0:04:55.4]} 4... Bf5 {[%clk 0:04:50.3]} 5. Bd3 {[%clk 0:04:54.2]} 5...
Bxd3 {[%clk 0:04:48.1]} 6. Qxd3 {[%clk 0:04:54.1]} 6... Qc7 {[%clk 0:04:45.7]}
7. Nf3 {[%clk 0:04:53]} 7... e6 {[%clk 0:04:44.4]} 8. Nbd2 {[%clk 0:04:51.9]}
8... h6 {[%clk 0:04:41.6]} 9. Bh4 {[%clk 0:04:51]} 9... Be7 {[%clk 0:04:37.4]}
10. Bg3 {[%clk 0:04:50.9]} 10... Bd6 {[%clk 0:04:36.3]} 11. dxc5 {[%clk
0:04:48.7]} 11... Bxg3 {[%clk 0:04:34.7]} 12. hxg3 {[%clk 0:04:48.1]} 12... a5
{[%clk 0:04:32.7]} 13. a3 {[%clk 0:04:43.1]} 13... a4 {[%clk 0:04:31.1]} 14. O-O
{[%clk 0:04:39.5]} 14... Nf6 {[%clk 0:04:30]} 15. Nd4 {[%clk 0:04:34.2]} 15...
Ne5 {[%clk 0:04:26.9]} 16. Qb5+ {[%clk 0:04:32]} 16... Nfd7 {[%clk 0:04:16.4]}
17. f4 {[%clk 0:04:28.7]} 17... Ng4 {[%clk 0:04:12.6]} 18. Rf3 {[%clk
0:04:24.6]} 18... O-O {[%clk 0:04:10.3]} 19. Re1 {[%clk 0:04:18.5]} 19... Nxc5
{[%clk 0:04:05.2]} 20. e4 {[%clk 0:04:03.4]} 20... dxe4 {[%clk 0:04:01.5]} 21.
Nxe4 {[%clk 0:04:02.4]} 21... Nxe4 {[%clk 0:04:00]} 22. Rxe4 {[%clk 0:04:02.3]}
22... Nf6 {[%clk 0:03:58.4]} 23. Re5 {[%clk 0:03:53]} 23... Nd5 {[%clk
0:03:52.7]} 24. Qd3 {[%clk 0:03:47.7]} 24... Rac8 {[%clk 0:03:48.7]} 25. Qd1
{[%clk 0:03:34.4]} 25... Qc4 {[%clk 0:03:37.9]} 26. f5 {[%clk 0:03:20.8]} 26...
b5 {[%clk 0:03:29.4]} 27. fxe6 {[%clk 0:03:16]} 27... fxe6 {[%clk 0:03:28]} 28.
Nxe6 {[%clk 0:03:09.1]} 28... Rxf3 {[%clk 0:03:20.3]} 29. Qxf3 {[%clk
0:03:08.4]} 29... Nf6 {[%clk 0:03:18.7]} 30. Nd4 {[%clk 0:02:20.6]} 30... Qa2
{[%clk 0:03:06.2]} 31. Qe2 {[%clk 0:02:10.1]} 31... Rxc3 {[%clk 0:02:50.6]} 32.
Qxb5 {[%clk 0:01:56.4]} 32... Qb1+ {[%clk 0:02:41.6]} 33. Kh2 {[%clk 0:01:54.6]}
33... Rc1 {[%clk 0:02:40.1]} 34. Qb8+ {[%clk 0:01:00.8]} 34... Kh7 {[%clk
0:02:37]} 35. g4 {[%clk 0:01:00.3]} 35... Nxg4+ {[%clk 0:02:19.5]} 36. Kg3
{[%clk 0:00:58.9]} 36... Nxe5 {[%clk 0:02:18.2]} 37. Qxe5 {[%clk 0:00:55.8]}
37... Qd3+ {[%clk 0:02:13.7]} 38. Kh2 {[%clk 0:00:53.7]} 38... Rd1 {[%clk
0:02:08.5]} 39. Nf5 {[%clk 0:00:52.4]} 39... Qd5 {[%clk 0:01:54.9]} 40. Qxg7#
{[%clk 0:00:51.1]} 1-0

[Event "Live Chess"]
[Site "Chess.com"]
[Date "2023.05.21"]
[Round "-"]
[White "OceanFloater"]
[Black "Singapourfeuj"]
[Result "0-1"]
[WhiteElo "1019"]
[BlackElo "2188"]
[TimeControl "300"]
[EndTime "0:58:06 PDT"]
[Termination "Singapourfeuj won by resignation"]

1. e4 {[%clk 0:04:56.6]} 1... c5 {[%clk 0:04:58.9]} 2. Nf3 {[%clk 0:04:55.6]}
2... d6 {[%clk 0:04:58.1]} 3. d4 {[%clk 0:04:51.8]} 3... cxd4 {[%clk 0:04:57.3]}
4. Nxd4 {[%clk 0:04:50.3]} 4... Nf6 {[%clk 0:04:56.6]} 5. Bb5+ {[%clk
0:04:48.2]} 5... Bd7 {[%clk 0:04:54.7]} 6. Bxd7+ {[%clk 0:04:46.9]} 6... Nbxd7
{[%clk 0:04:52.5]} 7. Nc3 {[%clk 0:04:46.2]} 7... e6 {[%clk 0:04:50.8]} 8. O-O
{[%clk 0:04:37.5]} 8... a6 {[%clk 0:04:49.8]} 9. Nb3 {[%clk 0:04:36.2]} 9... Rc8
{[%clk 0:04:48.4]} 10. Bd2 {[%clk 0:04:34.7]} 10... Be7 {[%clk 0:04:47.5]} 11.
Re1 {[%clk 0:04:32.7]} 11... O-O {[%clk 0:04:46.5]} 12. Na5 {[%clk 0:04:30.3]}
12... Qxa5 {[%clk 0:04:44.5]} 13. a3 {[%clk 0:04:16.4]} 13... Qc7 {[%clk
0:04:42.6]} 14. b4 {[%clk 0:04:13.7]} 14... Ne5 {[%clk 0:04:41.6]} 15. f4 {[%clk
0:04:05.4]} 15... Nc4 {[%clk 0:04:40.6]} 16. e5 {[%clk 0:03:54.9]} 16... Nxd2
{[%clk 0:04:39.5]} 17. Qxd2 {[%clk 0:03:53.2]} 17... Qxc3 {[%clk 0:04:38]} 18.
Qxc3 {[%clk 0:03:51.7]} 18... Rxc3 {[%clk 0:04:36.9]} 19. Re2 {[%clk 0:03:50.5]}
19... dxe5 {[%clk 0:04:35.7]} 20. fxe5 {[%clk 0:03:49.2]} 20... Nd5 {[%clk
0:04:34.6]} 21. Rd2 {[%clk 0:03:47.9]} 21... Rfc8 {[%clk 0:04:33.4]} 22. Rc1
{[%clk 0:03:46]} 22... g6 {[%clk 0:04:32.2]} 23. Kf2 {[%clk 0:03:36.8]} 23...
Bg5 {[%clk 0:04:31.1]} 24. Rd3 {[%clk 0:03:34.1]} 24... Bxc1 {[%clk 0:04:29.6]}
25. Rxc3 {[%clk 0:03:33.4]} 25... Rxc3 {[%clk 0:04:28.3]} 0-1

[Event "Live Chess"]
[Site "Chess.com"]
[Date "2023.05.21"]
[Round "-"]
[White "KeithArkell"]
[Black "JoshMcK"]
[Result "1-0"]
[WhiteElo "2523"]
[BlackElo "1538"]
[TimeControl "300"]
[EndTime "0:58:16 PDT"]
[Termination "KeithArkell won by checkmate"]

1. d4 {[%clk 0:04:58]} 1... d5 {[%clk 0:04:58.4]} 2. c4 {[%clk 0:04:56.3]} 2...
e6 {[%clk 0:04:57.3]} 3. Nf3 {[%clk 0:04:54.7]} 3... Nf6 {[%clk 0:04:53.7]} 4.
cxd5 {[%clk 0:03:54.1]} 4... exd5 {[%clk 0:04:50.5]} 5. Nc3 {[%clk 0:03:53.1]}
5... Nc6 {[%clk 0:04:44.2]} 6. Bg5 {[%clk 0:03:51.8]} 6... Be6 {[%clk
0:04:40.1]} 7. e3 {[%clk 0:03:50.9]} 7... h6 {[%clk 0:04:38]} 8. Bh4 {[%clk
0:03:49.2]} 8... a6 {[%clk 0:04:36.1]} 9. Bg3 {[%clk 0:03:47.9]} 9... Bd6 {[%clk
0:04:33.3]} 10. Bxd6 {[%clk 0:03:45.6]} 10... Qxd6 {[%clk 0:04:33.2]} 11. Be2
{[%clk 0:03:42.7]} 11... O-O {[%clk 0:04:30.1]} 12. O-O {[%clk 0:03:41]} 12...
Ng4 {[%clk 0:04:24.5]} 13. h3 {[%clk 0:03:37.4]} 13... Nf6 {[%clk 0:04:23.1]}
14. Rc1 {[%clk 0:03:35.2]} 14... Rac8 {[%clk 0:04:09.8]} 15. Na4 {[%clk
0:03:33.6]} 15... Nd7 {[%clk 0:03:57.9]} 16. Nc5 {[%clk 0:03:32.2]} 16... Nxc5
{[%clk 0:03:55.7]} 17. Rxc5 {[%clk 0:03:30.9]} 17... Qd7 {[%clk 0:03:54.3]} 18.
a3 {[%clk 0:03:28.3]} 18... Qd6 {[%clk 0:03:27.3]} 19. Qc2 {[%clk 0:03:22.6]}
19... Qe7 {[%clk 0:03:19.1]} 20. Rc1 {[%clk 0:03:15.9]} 20... Qf6 {[%clk
0:02:59.6]} 21. b4 {[%clk 0:03:11.2]} 21... Ne7 {[%clk 0:02:56]} 22. Ne5 {[%clk
0:03:02.6]} 22... c6 {[%clk 0:02:40.6]} 23. Bg4 {[%clk 0:03:01.2]} 23... Bxg4
{[%clk 0:02:14.1]} 24. Nxg4 {[%clk 0:02:58.7]} 24... Qg6 {[%clk 0:02:09.6]} 25.
Ne5 {[%clk 0:02:55.3]} 25... Qxc2 {[%clk 0:01:55.9]} 26. R5xc2 {[%clk
0:02:49.6]} 26... Rcd8 {[%clk 0:01:47.2]} 27. a4 {[%clk 0:02:48.5]} 27... Nc8
{[%clk 0:01:35]} 28. b5 {[%clk 0:02:23.3]} 28... axb5 {[%clk 0:01:23.6]} 29.
axb5 {[%clk 0:02:21.5]} 29... Ne7 {[%clk 0:01:19.3]} 30. bxc6 {[%clk 0:02:19.2]}
30... bxc6 {[%clk 0:01:17.4]} 31. Nxc6 {[%clk 0:02:18.2]} 31... Nxc6 {[%clk
0:01:12.1]} 32. Rxc6 {[%clk 0:02:17.2]} 32... Rfe8 {[%clk 0:01:06.9]} 33. Rc7
{[%clk 0:02:15.8]} 33... Kf8 {[%clk 0:01:02.1]} 34. Rb7 {[%clk 0:02:14.2]} 34...
Ra8 {[%clk 0:00:56.9]} 35. Rcc7 {[%clk 0:02:11.6]} 35... Kg8 {[%clk 0:00:46]}
36. Rxf7 {[%clk 0:02:04.3]} 36... Kh8 {[%clk 0:00:41.6]} 37. Rxg7 {[%clk
0:01:51.6]} 37... h5 {[%clk 0:00:37.3]} 38. Rh7+ {[%clk 0:01:47.7]} 38... Kg8
{[%clk 0:00:36.1]} 39. Rbg7+ {[%clk 0:01:46.6]} 39... Kf8 {[%clk 0:00:34.7]} 40.
Rd7 {[%clk 0:01:45.5]} 40... h4 {[%clk 0:00:30.4]} 41. Rh8# {[%clk 0:01:43.7]}
1-0

[Event "Live Chess"]
[Site "Chess.com"]
[Date "2023.05.21"]
[Round "-"]
[White "chessfiction"]
[Black "Tushinskiy"]
[Result "1-0"]
[WhiteElo "2353"]
[BlackElo "2188"]
[TimeControl "300"]
[EndTime "0:58:17 PDT"]
[Termination "chessfiction won by resignation"]

1. e4 {[%clk 0:04:57.4]} 1... e5 {[%clk 0:04:58.3]} 2. Nf3 {[%clk 0:04:56.2]}
2... d6 {[%clk 0:04:57.3]} 3. Bc4 {[%clk 0:04:55]} 3... Bg4 {[%clk 0:04:56.1]}
4. h3 {[%clk 0:04:51.5]} 4... Bh5 {[%clk 0:04:54.9]} 5. c3 {[%clk 0:04:50.8]}
5... c6 {[%clk 0:04:52.9]} 6. d3 {[%clk 0:04:49.1]} 6... Qc7 {[%clk 0:04:51.8]}
7. Nbd2 {[%clk 0:04:46.7]} 7... Nf6 {[%clk 0:04:51.1]} 8. Nf1 {[%clk 0:04:43.6]}
8... Nbd7 {[%clk 0:04:49.9]} 9. g4 {[%clk 0:04:42.6]} 9... Bg6 {[%clk
0:04:49.1]} 10. Ng3 {[%clk 0:04:40.2]} 10... d5 {[%clk 0:04:48.4]} 11. Bb3
{[%clk 0:04:38.7]} 11... dxe4 {[%clk 0:04:46.6]} 12. dxe4 {[%clk 0:04:38.6]}
12... Nxe4 {[%clk 0:04:45.5]} 13. Nxe4 {[%clk 0:04:35.3]} 13... Bxe4 {[%clk
0:04:44.9]} 14. Bxf7+ {[%clk 0:04:33.8]} 14... Kxf7 {[%clk 0:04:44.7]} 15. Ng5+
{[%clk 0:04:32.7]} 15... Ke8 {[%clk 0:04:44]} 16. Nxe4 {[%clk 0:04:30.4]} 16...
Rd8 {[%clk 0:04:42.1]} 17. Bg5 {[%clk 0:04:27.4]} 17... Be7 {[%clk 0:04:33.9]}
18. Bxe7 {[%clk 0:04:13.7]} 18... Kxe7 {[%clk 0:04:33.8]} 19. Qd2 {[%clk
0:03:59.5]} 19... Nf6 {[%clk 0:04:31.2]} 20. Qg5 {[%clk 0:03:58.5]} 20... Kf7
{[%clk 0:04:29.2]} 21. Nxf6 {[%clk 0:03:54.7]} 21... gxf6 {[%clk 0:04:29.1]} 22.
Qh5+ {[%clk 0:03:53.6]} 22... Kg7 {[%clk 0:04:28]} 23. g5 {[%clk 0:03:51.5]}
23... Rhf8 {[%clk 0:04:16.6]} 24. Qh6+ {[%clk 0:03:42.9]} 24... Kh8 {[%clk
0:04:13.6]} 25. gxf6 {[%clk 0:03:39.3]} 25... Qd7 {[%clk 0:04:12.7]} 26. Rg1
{[%clk 0:03:35]} 26... Rf7 {[%clk 0:04:11.7]} 27. Rg3 {[%clk 0:03:04.1]} 27...
e4 {[%clk 0:04:09.3]} 28. Kf1 {[%clk 0:02:57.8]} 28... Rdf8 {[%clk 0:03:59.7]}
29. Rg7 {[%clk 0:02:39.1]} 29... Qf5 {[%clk 0:03:52.7]} 30. Rxf7 {[%clk
0:02:13.9]} 30... Rxf7 {[%clk 0:03:50.6]} 31. Rd1 {[%clk 0:02:10.9]} 31... Qxf6
{[%clk 0:03:49.1]} 32. Qxf6+ {[%clk 0:02:03.4]} 32... Rxf6 {[%clk 0:03:49]} 33.
Rd8+ {[%clk 0:02:01]} 33... Kg7 {[%clk 0:03:47.8]} 34. Ke2 {[%clk 0:01:59.5]}
34... Rf7 {[%clk 0:03:46.2]} 35. Ke3 {[%clk 0:01:58.2]} 35... Rf3+ {[%clk
0:03:44.4]} 36. Kxe4 {[%clk 0:01:54.5]} 36... Rxf2 {[%clk 0:03:41]} 37. Rd7+
{[%clk 0:01:53.4]} 37... Kg6 {[%clk 0:03:39.8]} 38. Rxb7 {[%clk 0:01:52]} 38...
Rh2 {[%clk 0:03:39]} 39. Rxa7 {[%clk 0:01:48.3]} 39... Rxb2 {[%clk 0:03:37.6]}
40. Ra6 {[%clk 0:01:45.9]} 40... Kg5 {[%clk 0:03:35.8]} 41. a4 {[%clk
0:01:42.1]} 41... c5 {[%clk 0:03:24.8]} 42. Kd5 {[%clk 0:01:38.6]} 42... Rc2
{[%clk 0:03:19.5]} 43. c4 {[%clk 0:01:37.5]} 43... Rc3 {[%clk 0:03:17.6]} 44.
h4+ {[%clk 0:01:30.2]} 44... Kh5 {[%clk 0:03:16.3]} 45. Kxc5 {[%clk 0:01:21]}
45... Rh3 {[%clk 0:03:15.2]} 46. Rd6 {[%clk 0:01:08.3]} 46... Rxh4 {[%clk
0:03:13.6]} 47. a5 {[%clk 0:01:07.3]} 47... Rh1 {[%clk 0:03:12.2]} 48. a6 {[%clk
0:01:05.8]} 48... Ra1 {[%clk 0:03:11.2]} 49. Kb6 {[%clk 0:01:01.7]} 49... Kg5
{[%clk 0:03:10.4]} 50. a7 {[%clk 0:00:59.8]} 50... h5 {[%clk 0:03:09.6]} 51. Kb7
{[%clk 0:00:57.3]} 51... Rb1+ {[%clk 0:03:07.9]} 52. Rb6 {[%clk 0:00:56.3]}
52... Ra1 {[%clk 0:03:07.1]} 53. a8=Q {[%clk 0:00:54.9]} 1-0

[Event "Live Chess"]
[Site "Chess.com"]
[Date "2023.05.21"]
[Round "-"]
[White "seasidecastle27"]
[Black "JamesWallman"]
[Result "1-0"]
[WhiteElo "1869"]
[BlackElo "755"]
[TimeControl "300"]
[EndTime "0:58:34 PDT"]
[Termination "seasidecastle27 won on time"]

1. d4 {[%clk 0:04:57.9]} 1... d5 {[%clk 0:04:56.7]} 2. Nf3 {[%clk 0:04:56.7]}
2... Nf6 {[%clk 0:04:52.5]} 3. Bf4 {[%clk 0:04:55.5]} 3... Nc6 {[%clk 0:04:49]}
4. e3 {[%clk 0:04:54.4]} 4... Bg4 {[%clk 0:04:42.1]} 5. Be2 {[%clk 0:04:52.3]}
5... e6 {[%clk 0:04:38.5]} 6. Nbd2 {[%clk 0:04:49.3]} 6... Bb4 {[%clk
0:04:34.2]} 7. c3 {[%clk 0:04:47.4]} 7... Ba5 {[%clk 0:04:32.1]} 8. b4 {[%clk
0:04:42.4]} 8... Bb6 {[%clk 0:04:30.3]} 9. a4 {[%clk 0:04:40.6]} 9... a5 {[%clk
0:04:27.4]} 10. b5 {[%clk 0:04:36.6]} 10... Ne7 {[%clk 0:04:23.8]} 11. Ne5
{[%clk 0:04:33.9]} 11... Bxe2 {[%clk 0:04:14.9]} 12. Qxe2 {[%clk 0:04:31.2]}
12... O-O {[%clk 0:04:11]} 13. O-O {[%clk 0:04:27.7]} 13... h6 {[%clk
0:04:04.1]} 14. h3 {[%clk 0:04:22.9]} 14... Nh7 {[%clk 0:04:01.2]} 15. Bh2
{[%clk 0:04:18.1]} 15... f6 {[%clk 0:03:51.5]} 16. Nd3 {[%clk 0:04:09.9]} 16...
Ng5 {[%clk 0:03:47.5]} 17. h4 {[%clk 0:03:55.5]} 17... Ne4 {[%clk 0:03:45.1]}
18. f3 {[%clk 0:03:43.3]} 18... Nxd2 {[%clk 0:03:42.1]} 19. Qxd2 {[%clk
0:03:42.1]} 19... Nf5 {[%clk 0:03:32.9]} 20. h5 {[%clk 0:03:25.5]} 20... Qe8
{[%clk 0:03:24.5]} 21. g4 {[%clk 0:03:23.3]} 21... Nd6 {[%clk 0:03:15.2]} 22.
Nf4 {[%clk 0:03:19.2]} 22... Nc4 {[%clk 0:03:06.8]} 23. Qe2 {[%clk 0:03:16.3]}
23... Rf7 {[%clk 0:02:50.9]} 24. Kg2 {[%clk 0:03:03.5]} 24... Rd8 {[%clk
0:02:38.4]} 25. Bg1 {[%clk 0:03:01.7]} 25... e5 {[%clk 0:02:35.4]} 26. Nxd5
{[%clk 0:02:21.7]} 26... Rxd5 {[%clk 0:02:29.8]} 27. Qxc4 {[%clk 0:02:19.6]}
27... Qe6 {[%clk 0:02:19]} 28. e4 {[%clk 0:02:14.9]} 28... Rd6 {[%clk
0:02:11.6]} 29. Qxe6 {[%clk 0:02:10.6]} 29... Rxe6 {[%clk 0:02:09.7]} 30. d5
{[%clk 0:02:09]} 30... Rd6 {[%clk 0:02:04]} 31. c4 {[%clk 0:02:07]} 31... Bxg1
{[%clk 0:02:00]} 32. Rxg1 {[%clk 0:02:04.3]} 32... c6 {[%clk 0:01:44.9]} 33.
bxc6 {[%clk 0:01:56]} 33... bxc6 {[%clk 0:01:42.4]} 34. Rab1 {[%clk 0:01:54.7]}
34... cxd5 {[%clk 0:01:37]} 35. cxd5 {[%clk 0:01:47.8]} 35... Rd8 {[%clk
0:01:30.6]} 36. Rgc1 {[%clk 0:01:42.4]} 36... Kh7 {[%clk 0:01:22.4]} 37. Rb5
{[%clk 0:01:40]} 37... Ra7 {[%clk 0:01:10.8]} 38. Rcc5 {[%clk 0:01:38.1]} 38...
Rdd7 {[%clk 0:01:02]} 39. Rxa5 {[%clk 0:01:34.9]} 39... Rxa5 {[%clk 0:00:56.3]}
40. Rxa5 {[%clk 0:01:33.4]} 40... Rb7 {[%clk 0:00:51.5]} 41. Rb5 {[%clk
0:01:31.5]} 41... Ra7 {[%clk 0:00:47.5]} 42. a5 {[%clk 0:01:29.8]} 42... Kg8
{[%clk 0:00:41.5]} 43. d6 {[%clk 0:01:25.3]} 43... Kf8 {[%clk 0:00:38.8]} 44.
Rc5 {[%clk 0:01:19.2]} 44... Ke8 {[%clk 0:00:31.9]} 45. Kf2 {[%clk 0:01:03.1]}
45... Kd7 {[%clk 0:00:28.2]} 46. Rd5 {[%clk 0:00:55.1]} 46... Ra6 {[%clk
0:00:23.1]} 47. Ke3 {[%clk 0:00:52.5]} 47... Rxd6 {[%clk 0:00:20.9]} 48. Rxd6+
{[%clk 0:00:48.5]} 48... Kxd6 {[%clk 0:00:19.2]} 49. Kd3 {[%clk 0:00:47.4]}
49... Kc7 {[%clk 0:00:18.1]} 50. Kc4 {[%clk 0:00:46.5]} 50... Kb7 {[%clk
0:00:16.4]} 51. Kb5 {[%clk 0:00:45.1]} 51... Ka7 {[%clk 0:00:14.8]} 52. a6
{[%clk 0:00:41.8]} 52... Ka8 {[%clk 0:00:12.8]} 53. Kb6 {[%clk 0:00:39.9]} 53...
Kb8 {[%clk 0:00:10.8]} 54. a7+ {[%clk 0:00:37.1]} 54... Ka8 {[%clk 0:00:09.1]}
55. Ka6 {[%clk 0:00:35.4]} 55... f5 {[%clk 0:00:04.7]} 56. gxf5 {[%clk
0:00:33.3]} 1-0

[Event "Live Chess"]
[Site "Chess.com"]
[Date "2023.05.21"]
[Round "-"]
[White "raimundklein"]
[Black "Mugzwang"]
[Result "1-0"]
[WhiteElo "1753"]
[BlackElo "1543"]
[TimeControl "300"]
[EndTime "0:58:56 PDT"]
[Termination "raimundklein won on time"]

1. e4 {[%clk 0:04:57.3]} 1... c5 {[%clk 0:04:58.3]} 2. Nf3 {[%clk 0:04:56]} 2...
Nc6 {[%clk 0:04:57.5]} 3. c3 {[%clk 0:04:54.3]} 3... Nf6 {[%clk 0:04:49.7]} 4.
e5 {[%clk 0:04:51.7]} 4... Nd5 {[%clk 0:04:48.6]} 5. d4 {[%clk 0:04:51]} 5...
cxd4 {[%clk 0:04:47.7]} 6. cxd4 {[%clk 0:04:50.9]} 6... d6 {[%clk 0:04:44.3]} 7.
Be2 {[%clk 0:04:40.5]} 7... dxe5 {[%clk 0:04:42.2]} 8. dxe5 {[%clk 0:04:39.8]}
8... e6 {[%clk 0:04:29.5]} 9. O-O {[%clk 0:04:38.2]} 9... Qc7 {[%clk 0:04:25.3]}
10. Bf4 {[%clk 0:04:34.9]} 10... Be7 {[%clk 0:04:19.9]} 11. Bg3 {[%clk
0:04:33.6]} 11... O-O {[%clk 0:04:17.8]} 12. Nc3 {[%clk 0:04:29.5]} 12... Nxc3
{[%clk 0:04:15.5]} 13. bxc3 {[%clk 0:04:29.4]} 13... Rd8 {[%clk 0:04:08.7]} 14.
Qc2 {[%clk 0:04:26]} 14... Nb4 {[%clk 0:03:59]} 15. Qb3 {[%clk 0:04:24.5]} 15...
Nc6 {[%clk 0:03:51.1]} 16. Rad1 {[%clk 0:04:21.9]} 16... b6 {[%clk 0:03:45.5]}
17. Bd3 {[%clk 0:04:12.9]} 17... Bb7 {[%clk 0:03:39.9]} 18. Be4 {[%clk 0:04:04]}
18... Na5 {[%clk 0:03:34.4]} 19. Qc2 {[%clk 0:04:02.8]} 19... Bxe4 {[%clk
0:03:26.7]} 20. Qxe4 {[%clk 0:04:02.7]} 20... Qxc3 {[%clk 0:03:23.1]} 21. Rc1
{[%clk 0:03:53.1]} 21... Qb2 {[%clk 0:03:00.4]} 22. Rc7 {[%clk 0:03:51.1]} 22...
Bc5 {[%clk 0:02:38]} 23. Ng5 {[%clk 0:03:47.5]} 23... g6 {[%clk 0:01:22.1]} 24.
Rxf7 {[%clk 0:03:36.2]} 24... Qd4 {[%clk 0:01:11.4]} 25. Qf3 {[%clk 0:03:28.1]}
25... Rd7 {[%clk 0:01:06.4]} 26. Rf6 {[%clk 0:03:21.4]} 26... Rf8 {[%clk
0:00:59.2]} 27. Nxe6 {[%clk 0:03:16.2]} 27... Rxf6 {[%clk 0:00:21.3]} 28. Qxf6
{[%clk 0:03:16.1]} 28... Qb2 {[%clk 0:00:06.8]} 29. Nxc5 {[%clk 0:03:08.4]}
29... bxc5 {[%clk 0:00:04]} 30. Qe6+ {[%clk 0:02:54]} 1-0

[Event "Live Chess"]
[Site "Chess.com"]
[Date "2023.05.21"]
[Round "-"]
[White "friarnator"]
[Black "YrrriKharkiv"]
[Result "0-1"]
[WhiteElo "1990"]
[BlackElo "2079"]
[TimeControl "300"]
[EndTime "0:59:09 PDT"]
[Termination "YrrriKharkiv won by resignation"]

1. e4 {[%clk 0:04:58.1]} 1... e6 {[%clk 0:04:58.8]} 2. d4 {[%clk 0:04:56.5]}
2... d5 {[%clk 0:04:58.2]} 3. Nc3 {[%clk 0:04:56.1]} 3... Nf6 {[%clk 0:04:56.9]}
4. Bg5 {[%clk 0:04:55]} 4... Be7 {[%clk 0:04:55.5]} 5. e5 {[%clk 0:04:54.2]}
5... Nfd7 {[%clk 0:04:54.7]} 6. Bxe7 {[%clk 0:04:54.1]} 6... Qxe7 {[%clk
0:04:53.6]} 7. f4 {[%clk 0:04:54]} 7... a6 {[%clk 0:04:52.7]} 8. Nf3 {[%clk
0:04:53.1]} 8... c5 {[%clk 0:04:51.9]} 9. Qd2 {[%clk 0:04:52.6]} 9... Nc6 {[%clk
0:04:50.8]} 10. dxc5 {[%clk 0:04:52]} 10... Qxc5 {[%clk 0:04:46.4]} 11. Bd3
{[%clk 0:04:51.9]} 11... f6 {[%clk 0:04:41.1]} 12. O-O-O {[%clk 0:04:25.9]}
12... fxe5 {[%clk 0:04:36.8]} 13. fxe5 {[%clk 0:04:25.2]} 13... Ndxe5 {[%clk
0:04:34.3]} 14. Nxe5 {[%clk 0:04:19.2]} 14... Nxe5 {[%clk 0:04:33.2]} 15. Qg5
{[%clk 0:04:18.2]} 15... Nxd3+ {[%clk 0:04:25.6]} 16. Rxd3 {[%clk 0:04:17.2]}
16... O-O {[%clk 0:04:23.7]} 17. Rg3 {[%clk 0:04:13.1]} 17... Qd4 {[%clk
0:04:15.5]} 18. Ne2 {[%clk 0:04:03.8]} 18... Qf6 {[%clk 0:04:11.3]} 19. Qd2
{[%clk 0:03:55]} 19... Bd7 {[%clk 0:04:05.7]} 20. h4 {[%clk 0:03:49]} 20... Bb5
{[%clk 0:03:51.8]} 21. Nd4 {[%clk 0:03:36.9]} 21... Bd7 {[%clk 0:03:42.7]} 22.
h5 {[%clk 0:03:16.8]} 22... Qf4 {[%clk 0:03:38.8]} 23. Qxf4 {[%clk 0:03:15.8]}
23... Rxf4 {[%clk 0:03:37.2]} 24. Re1 {[%clk 0:03:12.6]} 24... Rxd4 {[%clk
0:03:30.8]} 0-1

[Event "Live Chess"]
[Site "Chess.com"]
[Date "2023.05.21"]
[Round "-"]
[White "profpirate4"]
[Black "ChessClubLive"]
[Result "0-1"]
[WhiteElo "1267"]
[BlackElo "1767"]
[TimeControl "300"]
[EndTime "0:59:32 PDT"]
[Termination "ChessClubLive won by checkmate"]

1. d4 {[%clk 0:04:57.4]} 1... d5 {[%clk 0:04:58]} 2. c4 {[%clk 0:04:56.6]} 2...
Nc6 {[%clk 0:04:54.8]} 3. Nc3 {[%clk 0:04:55.9]} 3... e5 {[%clk 0:04:50.4]} 4.
dxe5 {[%clk 0:04:54.4]} 4... Be6 {[%clk 0:04:39.8]} 5. cxd5 {[%clk 0:04:51.3]}
5... Bf5 {[%clk 0:04:31.9]} 6. dxc6 {[%clk 0:04:48]} 6... Qxd1+ {[%clk
0:04:30.8]} 7. Nxd1 {[%clk 0:04:46.8]} 7... bxc6 {[%clk 0:04:29]} 8. Nc3 {[%clk
0:04:41.3]} 8... O-O-O {[%clk 0:04:20.5]} 9. e4 {[%clk 0:04:39]} 9... Be6 {[%clk
0:04:16.5]} 10. Ba6+ {[%clk 0:04:37.2]} 10... Kb8 {[%clk 0:04:12.2]} 11. Nf3
{[%clk 0:04:32.1]} 11... f5 {[%clk 0:04:01.4]} 12. O-O {[%clk 0:04:27.7]} 12...
fxe4 {[%clk 0:03:55.5]} 13. Ng5 {[%clk 0:04:25.9]} 13... Bd5 {[%clk 0:03:47.3]}
14. Nxd5 {[%clk 0:04:21.5]} 14... cxd5 {[%clk 0:03:43.5]} 15. Ne6 {[%clk
0:04:15.4]} 15... Re8 {[%clk 0:03:38.7]} 16. Nc5 {[%clk 0:04:09.1]} 16... Bxc5
{[%clk 0:03:36.8]} 17. Be3 {[%clk 0:04:03.3]} 17... Bb6 {[%clk 0:03:18.4]} 18.
a4 {[%clk 0:04:01.2]} 18... d4 {[%clk 0:03:15.6]} 19. Bf4 {[%clk 0:03:55.2]}
19... Ba5 {[%clk 0:02:57.7]} 20. b4 {[%clk 0:03:52]} 20... Bxb4 {[%clk
0:02:53.8]} 21. Rab1 {[%clk 0:03:47.6]} 21... c5 {[%clk 0:02:51.8]} 22. e6+
{[%clk 0:03:45.3]} 22... Ka8 {[%clk 0:02:50.1]} 23. Rfc1 {[%clk 0:03:28.9]}
23... Rxe6 {[%clk 0:02:42.1]} 24. Bb5 {[%clk 0:03:25.8]} 24... a6 {[%clk
0:02:37.2]} 25. Rxb4 {[%clk 0:03:24.4]} 25... axb5 {[%clk 0:02:35.6]} 26. Rxc5
{[%clk 0:03:21]} 26... Ne7 {[%clk 0:02:22.7]} 27. axb5 {[%clk 0:03:17.9]} 27...
Rc8 {[%clk 0:02:08.1]} 28. Ra4+ {[%clk 0:03:16.6]} 28... Kb7 {[%clk 0:02:07.3]}
29. Rg5 {[%clk 0:02:50]} 29... e3 {[%clk 0:01:34.4]} 30. Rxd4 {[%clk 0:02:41.1]}
30... Rc1+ {[%clk 0:01:27.2]} 31. Rd1 {[%clk 0:02:36.8]} 31... Rxd1# {[%clk
0:01:25.9]} 0-1